Cogmind - Beta 10.2 *** ADVENTURER MODE // 2022.03.03 @ 12:57:41 Player: Gorgonaught Result: Destroyed by S-10 Pest with Light Assault Rifle Performance ------------- Evolutions (0) 0 Regions Visited (1) 200 Robots Destroyed (5) 25 Value Destroyed (63) 63 Prototype IDs (0) 0 Alien Tech Used (0) 0 Bonus (0) 0 TOTAL SCORE: 288 Bonus ------- None Cogmind --------- Core Integrity 0/250 Matter 285/300 Energy 80/125 System Corruption 1% Temperature Cool (0) Movement Walking (210) Ox3 Location -10/Materials Parts ------- > --- POWER (1) -------- Light Ion Engine > --- PROPULSION (2) --- Aluminum Leg > --- UTILITY (2) ------ High-capacity Storage Unit Utility Shielding > --- WEAPON (2) ------- (None) > --- INVENTORY (12) --- Small Storage Unit High-capacity Storage Unit Peak State ------------ > --- POWER ------------ Light Ion Engine > --- PROPULSION ------- Aluminum Leg Aluminum Leg > --- UTILITY ---------- Small Storage Unit High-capacity Matter Pod > --- WEAPON ----------- Medium Laser Light Assault Rifle > --- INVENTORY -------- Light Ion Engine Light Treads Hammer [Rating: 7] Favorites ----------- Power Light Ion Engine Engine Light Ion Engine Propulsion Aluminum Leg Treads Light Treads Leg Aluminum Leg Utility High-capacity Storage Unit Storage High-capacity Storage Unit Protection Utility Shielding Weapon Light Assault Rifle Energy Gun Medium Laser Ballistic Gun Light Assault Rifle Impact Weapon Hammer Build | -11 -10 ------- Run | Scr Mat Slots Evolved . | . . Power . | . . Propulsion . | . . Utility . | . . Weapon . | . . Parts Attached 16 | 4 12 Power 4 | 1 3 Engine 4 | 1 3 Core . | . . Reactor . | . . Propulsion 4 | . 4 Treads 1 | . 1 Leg 3 | . 3 Wheel . | . . Hover . | . . Flight . | . . Utility 5 | 1 4 Device . | . . Storage 4 | 1 3 Processor . | . . Hackware . | . . Protection 1 | . 1 Artifact . | . . Weapon 3 | 2 1 Energy Gun 1 | 1 . Energy Cannon . | . . Ballistic Gun 1 | 1 . Ballistic Cannon . | . . Launcher . | . . Special Weapon . | . . Impact Weapon 1 | . 1 Slashing Weapon . | . . Piercing Weapon . | . . Special Melee Weapon . | . . Unidentified Prototypes . | . . Parts Lost 8 | . 8 Power 2 | . 2 Propulsion 3 | . 3 Utility . | . . Weapon 3 | . 3 Highest Loss Streak 5 | . 5 Average Slot Usage (%) 89 | . 89 Engine 13 | . 13 Treads 1 | . 1 Leg 22 | . 22 Storage 24 | . 24 Protection 1 | . 1 Energy Gun 10 | . 10 Ballistic Gun 11 | . 11 Impact Weapon 2 | . 2 Naked Turns . | . . Heaviest Build 70 | 10 70 Greatest Support 20 | 3 20 Greatest Overweight (x) 3 | 3 3 Average Overweight (x) 1 | 1 1 Largest Inventory Capacity 20 | 6 20 Average Capacity 11 | 5 12 Most Carried 5 | 4 5 Average Carried 3 | 3 3 Final Capacity 12 | 6 12 Final Carried 4 | 4 2 Class Distribution -------------------- 64% | Mutant 35% | Hauler-Mutant Dominant Class ---------------- Mutant | -10/Materials Resources | -11 -10 ----------- Run | Scr Mat Matter Collected 345 | 241 104 Remotely . | . . Salvage Created 144 | . 144 Parts 7 | . 7 Haulers Intercepted 1 | . 1 Recyclers Shooed . | . . Parts Field Recycled . | . . Retrieved Matter . | . . Parts Self-Destructed . | . . Prevented . | . . Kills | -11 -10 ------- Run | Scr Mat Combat Hostiles Destroyed 2 | . 2 Melee 2 | . 2 Classes Destroyed 5 | . 5 Worker 1 | . 1 Hauler 1 | . 1 Watcher 1 | . 1 Swarmer 1 | . 1 Grunt 1 | . 1 Best Kill Streak 1 | . 1 Combat Bots Only 1 | . 1 Max Kills in Single Turn 1 | . 1 Gunslinging . | . . Exploded . | . . Melee 1 | . 1 Uniques/NPCs Destroyed . | . . Combat | -11 -10 -------- Run | Scr Mat Damage Taken 996 | . 996 Core 250 | . 250 Absorbed by Shields . | . . Core Remaining (%) 100 | 100 . Volleys Fired 29 | 1 28 Largest 2 | 2 2 Hottest 70 | 70 70 Shots Fired 50 | 2 48 Gun 50 | 2 48 Cannon . | . . Launcher . | . . Special . | . . Kinetic 29 | 1 28 Thermal 21 | 1 20 Explosive . | . . Electromagnetic . | . . Robot Hit Streak 17 | . 17 Robot Miss Streak 3 | . 3 Penetration Max . | . . Secondary Targets . | . . Shots Hit Robots 46 | . 46 Core Hits 9 | . 9 Critical Hits . | . . Critical Kills . | . . Critical Parts Destroyed . | . . Melee Attacks 15 | . 15 Impact 15 | . 15 Slashing . | . . Piercing . | . . Sneak Attacks 1 | . 1 Combat Hostiles . | . . Follow-up Attacks . | . . Damage Inflicted 545 | . 545 Guns 317 | . 317 Cannons . | . . Explosions . | . . Melee 228 | . 228 Ramming . | . . Kinetic 143 | . 143 Thermal 174 | . 174 Explosive . | . . Electromagnetic . | . . Impact 228 | . 228 Slashing . | . . Piercing . | . . Highest Corruption 1 | . 1 Average Corruption 1 | . 1 Corruption Purged . | . . Effects 2 | . 2 Energy Discharges 1 | . 1 Data Loss (minor) 1 | . 1 Overload Shots . | . . Overflow Damage 30 | . 30 Projectiles . | . . Explosions . | . . Melee 30 | . 30 Knockbacks . | . . Impact . | . . Kinetic . | . . Secondary . | . . Self-Inflicted Damage . | . . Shots . | . . Rammed . | . . Targets Rammed . | . . Kicked . | . . Crushed . | . . Highest Temperature 80 | 30 80 Average Temperature 22 | 18 22 Received Heat Transfer 114 | . 114 Siege Activations . | . . Robots Corrupted . | . . Combat Hostiles . | . . Parts Fried 1 | . 1 Impact Corruptions 4 | . 4 Robots Melted . | . . Combat Hostiles . | . . Parts Melted . | . . Heat Transferred 518 | . 518 Parts Sabotaged . | . . Parts Stolen . | . . Parts Stripped . | . . Power Chain Reactions . | . . Missiles Intercepted . | . . Alert | -11 -10 ------- Run | Scr Mat Peak Influence 50 | . 50 Initial . | . . Average 13 | . 17 Maximum Alert Level . | . . Low Security (%) 100 | 100 100 Level 1 . | . . Level 2 . | . . Level 3 . | . . Level 4 . | . . Level 5 . | . . High Security . | . . Max Security . | . . Squads Dispatched 1 | . 1 Investigation 1 | . 1 Extermination . | . . Reinforcement . | . . Assault . | . . Garrison . | . . Intercept . | . . Construction Impeded . | . . Haulers Reinforced . | . . Stealth | -11 -10 --------- Run | Scr Mat Distress Signals 1 | . 1 Communications Jammed . | . . Distress Signals . | . . Times Spotted 13 | . 13 Peak Tracking Total 11 | . 11 Tactical Retreats . | . . Traps | -11 -10 ------- Run | Scr Mat Traps Triggered 4 | . 4 Indirectly . | . . Trap Hack Attempts . | . . Triggered . | . . Disarmed . | . . Reprogrammed . | . . Reused . | . . Traps Extracted . | . . Installed . | . . Triggered . | . . Machines | -11 -10 ---------- Run | Scr Mat Machines Disabled . | . . Max in Single Turn . | . . Machines Sabotaged . | . . Garrisons Compromised . | . . Overloaded Fab Kills . | . . Fab Network Shutdowns . | . . Hacking | -11 -10 --------- Run | Scr Mat Machines Accessed 1 | . 1 Terminals . | . . Fabricators . | . . Repair Stations . | . . Recycling Units 1 | . 1 Scanalyzers . | . . Garrison Access . | . . Total Hacks 9 | . 9 Successful 6 | . 6 Failed 3 | . 3 Catastrophic . | . . Database Lockouts . | . . Manual . | . . Terminals . | . . Fabricators . | . . Repair Stations . | . . Recycling Units 9 | . 9 Scanalyzers . | . . Garrison Access . | . . Terminal Hacks . | . . Fabricator Hacks . | . . Repair Station Hacks . | . . Recycling Unit Hacks 6 | . 6 Retrieve Components 6 | . 6 Scanalyzer . | . . Garrison Access Hacks . | . . Unauthorized Hacks . | . . Terminals . | . . Fabricators . | . . Repair Stations . | . . Recycling Units . | . . Scanalyzers . | . . Garrison Access . | . . Data Cores Recovered . | . . Used . | . . Hacking Detections 1 | . 1 Full Trace Events . | . . Feedback Events . | . . Feedback Blocked . | . . Robot Schematics Acquired . | . . Robots Built . | . . Matter . | . . Time . | . . Total Robot Build Rating . | . . Part Schematics Acquired . | . . Parts Built . | . . Matter . | . . Time . | . . Total Part Build Rating . | . . Parts Repaired . | . . Time . | . . Parts Recycled . | . . Recycled Matter . | . . Retrieved Matter . | . . Retrieved Components 1 | . 1 Parts Scanalyzed . | . . Part Schematics Acquired . | . . Parts Damaged . | . . Bothacking | -11 -10 ------------ Run | Scr Mat Used RIF Installer . | . . Robots Hacked . | . . Non-combat . | . . Combat . | . . Robot Hacks Applied . | . . Relay Couplers Released . | . . Robots Rewired . | . . Allies Hacked . | . . Hacks Repelled . | . . Allies | -11 -10 -------- Run | Scr Mat Total Allies . | . . Largest Group . | . . Highest-Rated Group . | . . Highest-Rated Ally . | . . Total Orders . | . . Ally Attacks . | . . Total Damage . | . . Kills . | . . Allies Corrupted . | . . Allies Melted . | . . Intel | -11 -10 ------- Run | Scr Mat Robot Analysis Total . | . . Derelict Logs Recovered . | . . Drone Launches . | . . Drone Recoveries . | . . Exploration | -11 -10 ------------- Run | Scr Mat Turns Passed 519 | 110 409 Spaces Moved 265 | 85 180 Core 97 | 85 12 Treads 7 | . 7 Legs 161 | . 161 Wheels . | . . Hover . | . . Flight . | . . Fastest Speed 50 | 50 120 Average Speed 143 | 116 156 Slowest Speed 220 | 200 220 Overloaded Moves . | . . Propulsion Burnouts . | . . Robots Hopped . | . . Cave-ins Triggered . | . . Exploration Rate (%) 18 | 4 33 Regions Visited 1 Branch Regions . Pre-discovered Areas . | . . Known Exits Taken . | . . Unknown Exits Taken 1 | 1 . Scrap Searched . | . . Spaces Dug . | . . Terrain Destroyed . | . . Melee . | . . Projectile . | . . AOE . | . . Terrain Rammed . | . . Walls Destroyed . | . . Machines Disabled . | . . Actions | -11 -10 --------- Run | Scr Mat Total 337 | 93 244 Wait . | . . Move 264 | 84 180 Hop . | . . Pick Up 10 | 4 6 Fast Attach 5 | 4 1 Attach 10 | . 10 Detach 2 | . 2 Swap 1 | . 1 Drop 1 | . 1 Fire 29 | 1 28 Melee 15 | . 15 Ram . | . . Kick . | . . Crush . | . . Escape Stasis . | . . Rewire . | . . Trap . | . . Miscellaneous . | . . Route ------- -11/Scrapyard -10/Materials History --------- Turn | Location | Event 5 | -11/Scrapyard | Discovered new exit (range 14) 111 | -11/Scrapyard | Entered Materials 461 | -10/Materials | Core integrity fell below 50% 487 | -10/Materials | Core integrity fell below 20% 490 | -10/Materials | Lost 5 parts (1p2n2w) 520 | -10/Materials | Destroyed by S-10 Pest with Light Assault Rifle Last Messages --------------- 00500_ K-01 Serf collects debris. 00502_ R-06 Scavenger inserts Hcp. Matter Pod into recycling unit. 00505_ R-06 Scavenger inserts Visual Processing Unit into recycling unit. 00508_ K-01 Serf cleans the Purification Channel. 00508_ R-06 Scavenger inserts Lgt. Ion Engine into recycling unit. 00509_ Destroyed Flight Unit. 00509_ S-10 Pest system corrupted by crushing effect. 00511_ S-10 Pest IFF system glitched. 00511_ R-06 Scavenger collects Aluminum Leg. 00512_ K-01 Serf cleans the Purification Channel. 00514_ R-06 Scavenger inserts Aluminum Leg into recycling unit. 00514_ Lgt. Treads destroyed. 00515_ K-01 Serf cleans the Purification Channel. 00516_ Acquired Aluminum Leg. 00517_ K-01 Serf cleans the Atomic Centrifuge. 00518_ R-06 Scavenger collects Aluminum Leg. 00518_ R-06 Scavenger inserts Hcp. Storage Unit into recycling unit. 00518_ Ion Engine destroyed. 00519_ K-01 Serf cleans the Purification Channel. 00519_ Hammer destroyed. Map ----- +----------------------------------------------------+ | ?????????????????????????????????????????????????? | | ?????????????????????????????????????????????????? | | ?????????????????????????????????????????????????? | | ?????????????????????????????????????????????????? | | ?????????????????????????????????????????????????? | | ?????????????????????????????????????????????????? | | ?????????????????????????????????????????????????? | | ?????????????????????????????????????????????????? | | ?????????????????????????????????????????????????? | | ?????????????????????????????????????????????????? | | ?????????????????????????????????????????????????? | | ?????????????????????????+???????????????????????? | | ????????????????????????? ???????????????????????? | | ???????????????????????## #######t ??????????????? | | ???????????????????????# ???????????????? | | ?????????????? ????????# ! g???????????????? | | ?????????????# ????????# ????????????????? | | ?????????????# ????????# T " ???????????????? | | ?????????????# ???????# """? "????????????? | | ?????????????# ???????# [ """ "????????????? | | ?????????????# ???????# k """ "????????????? | | ?????????????+ ??????# ^ ""^ ?????????????? | | ?????????????# ??????# """ ????????????? | | ?????????????# ??????# k^ ^ "" #???????? | | ?????????????# ####### s """ #???????? | | ?????????????# w = @ " #???????? | | ?????????????# = !r u k #???????? | | ?????????????# = rs #???????? | | ?????????#"Y"# =m#"Y"#######+####?????????? | | ??? #"""#????????????????????? | | ??? k [ #####????????????????????? | | ?????"" """ """w%""" #????????????????????????? | | ?????????""" """ """ #????????????????????????? | | ?????"" """ """ """ #???????????????????????## | | ???? ######################### | | ???? | | ???? | | ???? * """ | | ????? ############+####### """ | | ????? #????????# #??# ^""" | | ??????#### ############????????# #### | | ?????????# ????????????????????# + | | ?????????# ??????????????????????# ### ^ """ | | ?????????????????????????????????# #?#*^! """ | | ?????????????????????????????????# #?# !=""" | | ?????????????????????????????????########?#! ! | | ??????????????????????????????????????????# | | ??????????????????????????????????????????# """ | | ??????????????????????????????????????????# """ | | ??????????????????????????????????????????# """ | +----------------------------------------------------+ Best States ------------- Heat Dissipation 25 Energy Generation 10 Energy Capacity 250 Matter Stores 316 Matter Capacity 500 Sight Range 16 Terrain Scan Density 10 Resistance: KI 20 Resistance: TH 20 Resistance: EX 20 Resistance: EM 20 Resistance: I 20 Resistance: S 20 Resistance: P 20 Utility Shielding 33 Evasion (%) 50 Recoil Reduction 1 Offensive Hacking 10 Item Schematics ----------------- None Robot Schematics ------------------ None Fabricated ------------ Nothing Alien Tech Used ----------------- None Achievements -------------- None Challenges ------------ None Game ------ Seed HypervelocityFlightApparatus Manual? 0 Play Time 00:21:52 Cumulative 3.8 hours Start 2022.03.03 @ 12:36:02 End 2022.03.03 @ 12:57:41 Sessions 1 Manual Loads 0 Difficulty Adventurer Special Mode None Game No. 4 Rogue 1 Adventurer 1 Explorer 2 Win Type - Total 0 Types 0/0/0/0/0/0/0/0/0 Lore% 2 Gallery% 6 Achievement% 7 Wizard Run 0 Options --------- ASCII 0 Keyboard 0 Movement Mouse Keybinds 0 Fullscreen 1 Font 18/SmallcapsGlow Map View 76x50 Tactical HUD 1 Map Filters NONE Filters NONE Steam 1 RUN: aae96ac7-759c-4aaf-835e-5146f582884b